bitfinex-derivatives/quotes_SOLF0:USTF0_20260115
["timestamp","ask_amount","ask_price","bid_price","bid_amount"]
[1768451811380,0.04868922,144.18,144.15,2.20563758]
[1768451815584,0.04868922,144.18,144.15,0.05015379]
[1768451815885,22.55918864,144.18,144.15,0.05015379]
[1768451818188,0.04868922,144.18,144.15,0.05015379]
[1768451827091,22.51049942,144.23,144.16,23.26637413]
[1768451827286,22.51049942,144.23,144.17,107.36185792]
[1768451827685,28.75189942,144.23,144.17,107.36185792]
[1768451827892,0.04909248,144.21,144.19,0.04887364]
[1768451829897,28.75149942,144.24,144.19,0.04887364]
[1768451830399,22.51049942,144.24,144.19,2.20435743]
[1768451830598,28.75069942,144.26,144.2,81.94]
[1768451830999,0.05113548,144.24,144.2,81.94]
[1768451831800,0.05113548,144.24,144.2,105.20637413]
[1768451833292,0.05113548,144.24,144.21,23.26637413]
[1768451833595,28.74969942,144.28,144.21,23.26637413]
[1768451833790,28.74969942,144.28,144.22,2.15548379]
[1768451834595,28.74889942,144.3,144.23,105.20637413]
[1768451834898,28.74889942,144.3,144.24,0.05188824]
[1768451835706,0.0441344,144.28,144.24,2.20737203]
[1768451838301,0.0441344,144.28,144.24,0.05188824]
[1768451838700,22.55463382,144.28,144.24,0.05188824]
[1768451839602,22.55463382,144.28,144.22,81.92]
[1768451839803,22.55463382,144.28,144.2,2.15548379]
[1768451839804,22.51049942,144.28,144.21,81.92]
[1768451840604,0.05231498,144.26,144.23,0.05125524]
[1768451840801,21.8256919,144.26,144.18,22.84047236]
[1768451841001,21.77337692,144.26,144.19,81.92]
[1768451841909,0.04725366,144.24,144.19,81.92]
[1768451842500,0.04725366,144.24,144.2,22.73584687]
[1768451842707,21.77337692,144.26,144.2,24.9390349]
[1768451843709,0.04568364,144.24,144.2,24.9390349]
[1768451849111,22.68542486,144.24,144.2,0.04770424]
[1768451853808,28.92632486,144.24,144.2,0.04770424]
[1768451854017,22.63974122,144.23,144.2,0.04770424]
[1768451858118,22.63974122,144.21,144.12,22.73584687]
[1768451858317,22.63974122,144.19,144.12,22.73584687]
[1768451859016,6.2424,144.21,144.14,22.77963328]
[1768451859217,6.2424,144.21,144.15,24.89133066]
[1768451860218,0.04637032,144.19,144.15,24.89133066]
[1768451861522,0.04637032,144.19,144.15,22.73584687]
[1768451862618,0.04637032,144.19,144.14,81.96378641]
[1768451862812,22.68611154,144.19,144.14,81.96378641]
[1768451864123,0.04637032,144.19,144.15,22.73584687]
[1768451864322,81.92,144.24,144.14,84.1192702]
[1768451864323,22.63974122,144.24,144.17,22.73584687]
[1768451864623,22.63974122,144.24,144.18,22.73584687]
[1768451865218,0.05117924,144.22,144.2,0.05294576]
[1768451865420,22.69092046,144.22,144.16,22.73584687]
[1768451865627,22.69092046,144.22,144.15,81.92]
[1768451866635,22.63974122,144.21,144.15,81.92]
[1768451866834,22.63974122,144.21,144.14,22.73584687]
[1768451867032,0.04693978,144.19,144.14,106.81133066]
[1768451867929,22.686681,144.19,144.14,84.07548379]
[1768451868129,22.686681,144.19,144.15,0.04675487]
[1768451885853,6.242,144.22,144.15,22.84064134]
[1768451886050,22.08039252,144.23,144.15,22.79388647]
[1768451886254,22.08039252,144.23,144.16,26.16274349]
[1768451886854,0.0532637,144.21,144.18,0.04649939]
[1768451900463,0.0532637,144.21,144.18,24.42234504]
[1768451900664,30.19889633,144.25,144.18,24.42234504]
[1768451900970,23.95829633,144.24,144.18,24.42234504]
[1768451901669,0.04947206,144.22,144.18,24.42234504]
[1768451914986,0.04947206,144.22,144.18,30.66554504]
[1768451915483,0.04947206,144.22,144.18,112.58554504]
[1768451915887,23.95829633,144.24,144.18,112.58554504]
[1768451917483,23.27493248,144.28,144.2,24.44033826]
[1768451918179,23.27493248,144.28,144.23,0.05219411]
[1768451920390,0.04838956,144.27,144.23,0.05219411]
[1768451922089,0.04838956,144.27,144.23,6.29329411]
[1768451922290,0.04838956,144.27,144.23,30.73363237]
[1768451922582,23.27493248,144.3,144.23,30.73363237]
[1768451923982,23.27493248,144.3,144.24,6.2407]
[1768451933896,23.27493248,144.3,144.23,0.05219411]
[1768451935298,25.42834695,144.3,144.23,0.05219411]
[1768451937198,25.42834695,144.3,144.23,6.29339411]
[1768451937591,25.42834695,144.3,144.24,22.1692374]
[1768451938493,23.27493248,144.3,144.24,22.1692374]
[1768451940195,25.42834695,144.3,144.23,0.05219411]
[1768451940402,0.05155307,144.28,144.23,0.05219411]
[1768451940594,24.22901338,144.28,144.23,0.05219411]
[1768451941601,0.05155307,144.28,144.23,22.22143151]
[1768451946605,0.05155307,144.28,144.23,24.37484598]
[1768451947803,24.22901338,144.28,144.23,0.05219411]
[1768451956415,0.05155307,144.28,144.24,22.1692374]
[1768451956609,0.01209008,144.28,144.24,22.1692374]
[1768451960115,24.18955039,144.28,144.23,0.05219411]
[1768451962303,30.42875039,144.28,144.23,0.05219411]
[1768451963410,24.30392294,144.27,144.23,0.05219411]
[1768451969712,24.30392294,144.27,144.2,8.39581447]
[1768451969907,24.30392294,144.26,144.19,104.95808282]
[1768451970825,0.05233704,144.24,144.21,0.04481523]
[1768451972012,0.05233704,144.24,144.16,6.2441]
[1768451972013,24.30392294,144.22,144.16,6.2441]
[1768451972215,24.30392294,144.22,144.16,104.95808282]
[1768451973217,0.04519107,144.2,144.18,0.04425058]
[1768451975214,0.00037584,144.2,144.18,0.04425058]
[1768451975421,24.30392294,144.24,144.18,0.04425058]
[1768451975624,24.30392294,144.24,144.18,23.1023334]
[1768451976623,24.35573796,144.22,144.18,0.04425058]
[1768451982330,30.59753796,144.22,144.18,0.04425058]
[1768451982530,24.35573796,144.22,144.15,23.05808282]
[1768451983526,24.35573796,144.22,144.17,0.04423636]
[1768451983826,30.54612294,144.21,144.17,0.04423636]
[1768451991227,0.05181502,144.22,144.17,24.18889003]
[1768451991429,24.72984866,144.26,144.2,26.29806814]
[1768451991622,233.41035778,144.31,144.2,26.29806814]
[1768451991623,24.72984866,144.28,144.2,26.29806814]
[1768451991823,24.72984866,144.28,144.22,2.15341447]
[1768451992019,264.37820644,144.31,144.22,26.29806814]
[1768451992219,24.72984866,144.3,144.22,24.14465367]
[1768451992521,0.0457621,144.27,144.25,0.04417291]
[1768452000558,0.00151152,144.27,144.25,0.04417291]
[1768452005354,24.73136018,144.27,144.25,0.04417291]
[1768452005564,24.73136018,144.27,144.21,24.14465367]
[1768452006445,24.73136018,144.27,144.23,0.05181254]
[1768452009459,24.73136018,144.27,144.19,106.04465367]
[1768452009752,24.73136018,144.27,144.18,6.2431]
[1768452009959,24.72984866,144.27,144.18,6.2431]
[1768452010653,0.04812145,144.24,144.21,0.04763074]
[1768452010853,0.04812145,144.24,144.17,24.14465367]
[1768452011160,24.77797011,144.24,144.17,24.14465367]
[1768452011559,24.77797011,144.24,144.15,24.14465367]
[1768452011752,28.09384664,144.24,144.15,24.14465367]
[1768452011946,28.09384664,144.24,144.18,0.04405428]
[1768452011947,24.78091715,144.21,144.18,0.04405428]
[1768452012853,0.05106849,144.21,144.18,0.04405428]
[1768452014158,0.00343775,144.21,144.18,0.04405428]
[1768452030970,23.28407601,144.25,144.18,22.7772823]
[1768452031164,6.2402,144.26,144.18,22.7772823]
[1768452031565,6.2402,144.26,144.19,22.73322802]
[1768452031962,0.04823829,144.24,144.21,0.04600798]
[1768452039980,23.3323143,144.24,144.21,0.04600798]
[1768452040281,23.3323143,144.24,144.17,22.73322802]
[1768452041384,23.3323143,144.24,144.19,0.04729431]
[1768452041770,29.5732143,144.24,144.19,0.04729431]
[1768452048884,23.28407601,144.29,144.21,22.73322802]
[1768452049294,23.28407601,144.29,144.22,26.097226]
[1768452049896,0.04979655,144.27,144.24,0.05044788]
[1768452053796,29.88564451,144.27,144.2,3.36399798]
[1768452053995,29.88564451,144.27,144.2,24.52493486]
[1768452054898,29.88564451,144.27,144.22,0.05177823]
[1768452060101,23.59624796,144.26,144.22,0.05177823]
[1768452075417,23.59624796,144.25,144.18,108.59853142]
[1768452076518,0.04769892,144.23,144.2,0.05020873]
[1768452083125,23.5425604,144.23,144.2,0.05020873]
[1768452102742,23.5425604,144.23,144.18,84.07359656]
[1768452103838,23.49486148,144.22,144.18,81.92]
[1768452104743,23.49486148,144.22,144.16,25.52750942]
[1768452104946,23.49486148,144.22,144.18,0.05024222]
[1768452114346,23.49486148,144.22,144.18,2.20383878]
[1768452114533,0.04769892,144.23,144.18,23.16936865]
[1768452119454,0.04769892,144.23,144.2,2.15359656]
[1768452121352,0.04769892,144.23,144.18,30.62466778]
[1768452123153,0.04769892,144.23,144.18,21.01577209]
[1768452125849,0.04769892,144.23,144.18,27.25887209]
[1768452128156,23.22723757,144.23,144.18,0.05024222]
[1768452131258,23.22723757,144.23,144.18,21.01577209]
[1768452133258,23.17953865,144.25,144.19,20.96552987]
[1768452134254,23.17953865,144.25,144.21,0.04851162]
[1768452135858,0.04919366,144.24,144.21,0.04851162]
[1768452140460,23.22873231,144.24,144.21,0.04851162]
[1768452156076,23.22873231,144.24,144.17,81.92]
[1768452157276,23.22873231,144.24,144.19,0.04628338]
[1768452165888,29.46963231,144.24,144.19,0.04628338]
[1768452166079,19.58771245,144.23,144.19,0.04628338]
[1768452182387,0.04919366,144.24,144.19,0.04628338]
[1768452182587,17.93366668,144.24,144.19,18.18312126]
[1768452182789,0.04919366,144.24,144.19,18.18312126]
[1768452183184,0.04919366,144.24,144.2,2.15465334]
[1768452185480,0.04919366,144.24,144.2,26.53389122]
[1768452185887,6.2389,144.29,144.22,20.29149122]
[1768452186086,23.28330469,144.28,144.22,20.29149122]
[1768452186284,17.88447302,144.28,144.22,20.29149122]
[1768452186991,0.04811688,144.26,144.24,0.04702369]
[1768452187391,17.9325899,144.26,144.19,24.37953788]
[1768452187595,17.88447302,144.26,144.2,2.15465334]
[1768452188694,0.04405581,144.24,144.22,0.05332891]
[1768452197800,17.88447302,144.28,144.22,18.19016679]
[1768452198101,17.88447302,144.28,144.22,20.34482013]
[1768452198994,0.05186404,144.26,144.22,20.34482013]
[1768452200408,17.88447302,144.28,144.22,20.34482013]
[1768452202305,0.0454975,144.26,144.22,20.34482013]
[1768452202702,0.0454975,144.26,144.22,18.19016679]
[1768452202913,0.0454975,144.26,144.22,20.34482013]
[1768452208802,0.0454975,144.26,144.22,2.20798225]
[1768452209912,0.0454975,144.26,144.22,0.05332891]
[1768452211913,0.0454975,144.26,144.22,17.30989471]
[1768452217922,17.95332952,144.26,144.22,0.05332891]
[1768452218914,0.0454975,144.26,144.22,17.30989471]
[1768452224320,0.0454975,144.26,144.22,23.55139471]
[1768452226320,0.0454975,144.26,144.22,17.30989471]
[1768452228116,0.0454975,144.26,144.23,19.41121914]
[1768452230928,0.0454975,144.26,144.23,17.2565658]
[1768452232126,16.37194344,144.3,144.25,17.64725514]
[1768452233326,0.04417749,144.29,144.26,0.0500915]
[1768452238832,16.41612093,144.29,144.23,17.64725514]
[1768452239932,16.41612093,144.29,144.25,0.05152688]
[1768452249234,0.04417749,144.29,144.25,17.69878202]
[1768452252127,16.37194344,144.31,144.25,17.69878202]
[1768452253435,22.60914344,144.33,144.26,17.64725514]
[1768452253738,0.04732372,144.31,144.28,0.04997483]
[1768452256036,0.02443825,144.31,144.29,17.64725514]
[1768452256236,16.37194344,144.34,144.29,17.64725514]
[1768452256439,16.37194344,144.34,144.27,23.88635514]
[1768452257342,16.37194344,144.34,144.29,0.0525105]
[1768452258246,0.05005225,144.33,144.25,23.88725514]
[1768452258440,16.37194344,144.32,144.25,23.88725514]
[1768452258638,16.37194344,144.32,144.25,17.64725514]
[1768452259343,0.04364242,144.3,144.27,0.05249213]
[1768452262047,0.04364242,144.3,144.27,17.06986848]
[1768452263648,0.04364242,144.3,144.27,0.05249213]
[1768452264240,0.04364242,144.3,144.27,16.49813217]
[1768452266854,0.04364242,144.3,144.27,0.05249213]
[1768452276459,0.04364242,144.3,144.27,16.49813217]
[1768452285577,3.3637775,144.29,144.19,16.44564004]
[1768452285965,5.38907156,144.28,144.19,16.44564004]
[1768452286274,3.3637775,144.3,144.21,16.44564004]
[1768452286479,218.08225449,144.31,144.21,16.44564004]
[1768452286671,0.04435648,144.27,144.24,0.04677785]
[1768452293079,0.04435648,144.27,144.21,16.97127267]
[1768452294170,0.04435648,144.27,144.23,0.05332686]
[1768452295776,7.06701907,144.4,144.31,16.97127267]
[1768452296485,7.06701907,144.4,144.32,16.97127267]
[1768452296686,0.0502412,144.37,144.35,0.05232995]
[1768452296981,0.0502412,144.37,144.32,16.97127267]
[1768452297172,0.0502412,144.37,144.29,98.87127267]
[1768452297374,0.0502412,144.37,144.3,16.97127267]
[1768452297882,0.0502412,144.37,144.32,0.05078857]
[1768452298676,6.2030877,144.37,144.32,0.05078857]
[1768452300577,0.0502412,144.37,144.32,0.05078857]
[1768452302878,0.0502412,144.37,144.32,17.02206124]
[1768452303077,12.37108883,144.42,144.32,19.1727065]
[1768452303278,96.40173409,144.42,144.32,19.12191793]
[1768452303581,6.3968439,144.41,144.33,16.97127267]
[1768452304180,6.3968439,144.41,144.36,0.05160309]
[1768452305883,8.54748916,144.41,144.36,0.05160309]
[1768452306579,6.3968439,144.41,144.36,0.05160309]
[1768452306780,90.26374526,144.42,144.36,0.05160309]
[1768452306975,0.04416684,144.4,144.36,0.05160309]
[1768452310878,8.17281254,144.4,144.33,16.97127267]
[1768452311985,8.17281254,144.4,144.35,0.05299484]
[1768452314482,9.05700925,144.39,144.31,16.97127267]
[1768452314687,11.20765451,144.39,144.31,16.97127267]
[1768452315388,15.29190925,144.38,144.31,16.97127267]
[1768452315587,0.04812478,144.36,144.33,0.04619517]
[1768452315781,0.04812478,144.36,144.31,16.97127267]
[1768452316887,0.04812478,144.36,144.32,0.04579807]
[1768452318277,16.00969876,144.36,144.29,16.97127267]
[1768452319382,16.00969876,144.36,144.31,0.04763537]
[1768452324589,0.04812478,144.36,144.31,16.91632246]
[1768452326688,400.2081,144.46,144.31,19.06696772]
[1768452326689,18.20556057,144.4,144.31,19.06696772]
[1768452326888,102.21620583,144.4,144.31,19.01933235]
[1768452327095,102.21620583,144.4,144.31,16.86868709]
[1768452327395,102.21620583,144.4,144.33,16.86868709]
[1768452327693,0.04715144,144.38,144.35,0.04557574]
[1768452331288,14.92370227,144.38,144.32,16.86868709]
[1768452331489,2.1977967,144.38,144.32,16.86868709]
[1768452331694,0.04715144,144.38,144.32,19.01933235]
[1768452332289,0.04715144,144.38,144.34,0.04876028]
[1768452332497,0.04715144,144.38,144.34,16.91744737]
[1768452332699,0.04715144,144.38,144.34,0.04876028]
[1768452334700,0.04715144,144.38,144.32,19.01933235]
[1768452334997,0.04715144,144.38,144.32,16.86868709]
[1768452335700,0.04715144,144.38,144.34,0.05249499]
[1768452349705,15.55047761,144.38,144.32,16.86868709]
[1768452350902,15.55047761,144.38,144.34,0.05046264]
[1768452352308,15.55047761,144.38,144.32,16.86868709]
[1768452353012,21.78527761,144.38,144.32,16.86868709]
[1768452353307,21.78527761,144.38,144.34,0.04615055]
[1768452353607,21.78527761,144.38,144.32,16.86868709]
[1768452354510,21.78527761,144.38,144.34,0.04412463]
[1768452354811,21.78527761,144.38,144.32,16.86868709]
[1768452355804,21.78527761,144.38,144.34,0.0216099]
[1768452356610,100.17126594,144.37,144.3,26.63320098]
[1768452357310,100.17126594,144.37,144.31,20.39520098]
[1768452357613,0.04736898,144.35,144.31,20.39520098]
[1768452383520,6.2358,144.36,144.33,21.39070878]
[1768452384319,0.04721002,144.36,144.33,21.39070878]
[1768452387827,0.04721002,144.36,144.32,0.04583663]
[1768452388133,0.04721002,144.36,144.32,21.43654541]
[1768452388521,6.28291002,144.36,144.32,21.43654541]
[1768452388729,88.14291002,144.36,144.32,21.43654541]
[1768452389634,6.28291002,144.36,144.32,21.43654541]
[1768452389828,88.14291002,144.36,144.32,21.43654541]
[1768452390031,88.14291002,144.36,144.29,6.2385]
[1768452390433,28.39803516,144.35,144.27,6.2391]
[1768452391137,0.04862733,144.32,144.27,6.2391]
[1768452392032,88.0962,144.35,144.28,21.39070878]
[1768452393338,0.05253235,144.33,144.28,21.39070878]
[1768452395739,0.05253235,144.33,144.28,27.62960878]
[1768452395939,0.05253235,144.33,144.29,21.39070878]
[1768452401450,0.05253235,144.33,144.3,21.4357046]
[1768452403748,25.5751073,144.33,144.26,21.39070878]
[1768452403952,5.46662868,144.32,144.26,21.39070878]
[1768452404153,25.5751073,144.33,144.26,21.39070878]
[1768452404652,6.2374,144.32,144.26,21.39070878]
[1768452408456,22.16183516,144.31,144.26,21.39070878]
[1768452408655,0.04428256,144.3,144.26,21.39070878]
[1768452408850,0.04428256,144.3,144.24,21.39070878]
[1768452410549,21.06417988,144.3,144.24,21.39070878]
[1768452411651,27.30247988,144.3,144.24,21.39070878]
[1768452412659,27.25879732,144.29,144.24,21.39070878]
[1768452412957,30.61953711,144.29,144.24,16.03813189]
[1768452414957,30.61953711,144.29,144.22,21.87552089]
[1768452415261,0.05289581,144.27,144.22,21.87552089]
[1768452417058,6.29269581,144.27,144.22,21.87552089]
[1768452417556,6.24,144.26,144.22,21.87552089]
[1768452420958,6.24,144.26,144.2,21.87552089]
[1768452420959,21.01989732,144.26,144.2,21.87552089]
[1768452421161,0.04559341,144.24,144.2,21.87552089]
[1768452421860,6.28659341,144.24,144.2,21.87552089]
[1768452422055,21.06549073,144.24,144.14,9.60553979]
[1768452422260,0.05272353,144.2,144.14,9.60553979]
[1768452423260,0.05272353,144.2,144.15,6.2446]
[1768452423460,0.05272353,144.2,144.15,8.39969229]
[1768452424062,0.05272353,144.2,144.16,21.87552089]
[1768452425262,6.2414,144.23,144.16,21.87552089]
[1768452425466,6.2414,144.23,144.17,21.92563401]
[1768452426461,0.04614765,144.21,144.17,21.92563401]
[1768452427461,6.2406,144.25,144.19,21.87552089]
[1768452428257,0.04721082,144.23,144.21,0.05287304]
[1768452436563,0.04721082,144.23,144.21,0.00014951]
[1768452451074,81.92,144.24,144.21,21.30114444]
[1768452451371,27.27597364,144.29,144.21,23.45623673]
[1768452451580,81.92,144.28,144.21,23.45623673]
[1768452451772,81.92,144.28,144.21,21.30114444]
[1768452451963,0.05167846,144.26,144.21,23.45623673]
[1768452453670,0.05167846,144.26,144.21,21.30114444]
[1768452457080,0.05167846,144.26,144.21,23.45623673]
[1768452457281,109.19587364,144.29,144.21,23.45623673]
[1768452458280,0.04657578,144.26,144.21,23.45623673]
[1768452459177,0.04657578,144.26,144.21,29.69813673]
[1768452459381,21.03707364,144.29,144.22,21.30099493]
[1768452460390,0.05073713,144.27,144.24,21.35318829]
[1768452460996,21.03707364,144.29,144.24,21.35318829]
[1768452461184,90.29339229,144.3,144.24,21.35318829]
[1768452462298,0.0504085,144.28,144.24,21.35318829]
[1768452465383,0.0504085,144.28,144.24,0.05219336]
[1768452465585,2.20550079,144.28,144.24,0.05219336]
[1768452466089,2.20550079,144.28,144.22,21.30099493]
[1768452466501,23.24257443,144.28,144.22,21.30099493]
[1768452467193,23.24257443,144.28,144.24,0.0458349]
[1768452467992,23.24257443,144.28,144.22,21.30099493]
[1768452468893,23.24257443,144.28,144.24,0.04661389]
[1768452472300,21.08748214,144.28,144.24,0.04661389]
[1768452472494,23.24257443,144.28,144.24,0.04661389]
[1768452474697,21.08748214,144.28,144.24,0.04661389]
[1768452490104,81.9,144.27,144.24,0.04661389]
[1768452490310,102.35299898,144.27,144.24,0.04661389]
[1768452493008,20.45299898,144.26,144.2,19.95947149]
[1768452493908,0.05214076,144.24,144.22,0.04565958]
[1768452494314,20.50513974,144.24,144.22,0.04565958]
[1768452494515,20.50513974,144.24,144.18,19.95947149]
[1768452494714,102.40513974,144.24,144.18,19.95947149]
[1768452495414,102.40513974,144.24,144.19,19.95947149]
[1768452495615,20.50513974,144.24,144.2,0.04476165]
[1768452504918,26.74603974,144.24,144.2,0.04476165]
[1768452505221,20.62513268,144.23,144.2,0.04476165]
[1768452511512,20.62513268,144.23,144.17,20.3401145]
[1768452512322,0.05214076,144.24,144.18,20.3401145]
[1768452512527,102.52513268,144.25,144.18,20.3401145]
[1768452512823,0.05060478,144.23,144.18,20.3401145]
[1768452513816,0.05060478,144.23,144.18,26.5834145]
[1768452514017,0.05060478,144.23,144.19,20.3401145]
[1768452521529,20.62513268,144.27,144.2,6.2424]
[1768452521736,20.62513268,144.27,144.21,20.3401145]
[1768452522647,20.62513268,144.29,144.23,20.38404526]
[1768452523944,0.04413411,144.27,144.23,20.38404526]
[1768452524750,0.04413411,144.27,144.23,26.62514526]
[1768452524945,20.62513268,144.31,144.23,20.38404526]
[1768452525744,20.62513268,144.31,144.25,26.5803145]
[1768452525951,20.62513268,144.31,144.26,20.3401145]
[1768452527043,0.04645534,144.3,144.26,20.3401145]
[1768452527651,0.04645534,144.3,144.27,0.04491882]
[1768452531445,101.75649955,144.34,144.27,19.27121741]
[1768452532548,19.85649955,144.34,144.27,19.27121741]
[1768452532748,19.85649955,144.34,144.27,25.51061741]
[1768452532953,19.85649955,144.34,144.28,19.22629859]
[1768452533856,0.04734735,144.32,144.28,19.22629859]
[1768452534555,19.85649955,144.34,144.28,19.22629859]
[1768452535557,0.04728014,144.32,144.28,19.22629859]
[1768452538858,19.85649955,144.38,144.29,19.22629859]
[1768452539058,19.85649955,144.36,144.29,19.22629859]
[1768452539756,0.04585724,144.34,144.31,0.04605397]
[1768452540253,19.90235679,144.34,144.27,19.22629859]
[1768452540453,19.90235679,144.34,144.26,25.46599859]
[1768452541455,19.90235679,144.34,144.29,0.04635115]
[1768452541754,19.90235679,144.34,144.26,6.2397]
[1768452542655,101.78235679,144.34,144.26,6.2397]
[1768452542858,19.85649955,144.33,144.26,6.2397]
[1768452543059,19.85649955,144.33,144.24,25.46679859]
[1768452543257,19.90944749,144.31,144.24,19.22629859]
[1768452543963,19.90944749,144.31,144.26,0.0468965]
[1768452545363,0.05294794,144.31,144.26,19.27319509]
[1768452546761,0.05294794,144.31,144.26,25.51299509]
[1768452548965,19.90944749,144.31,144.26,25.51299509]
[1768452549167,19.90944749,144.31,144.26,0.0468965]
[1768452549758,22.06142613,144.31,144.26,0.0468965]
[1768452551163,19.90944749,144.31,144.26,0.0468965]
[1768452551958,0.05294794,144.31,144.26,19.27319509]
[1768452553169,19.90944749,144.31,144.26,0.0468965]
[1768452553353,22.06142613,144.31,144.26,0.0468965]
[1768452554864,19.90944749,144.31,144.26,0.0468965]
[1768452556467,19.90944749,144.31,144.26,19.27319509]
[1768452557970,19.90944749,144.31,144.26,25.51299509]
[1768452558562,19.90944749,144.31,144.26,0.0468965]
[1768452566077,20.22574569,144.27,144.21,151.89914066]
[1768452566871,20.22574569,144.27,144.2,19.04949356]
[1768452567176,0.0527031,144.25,144.23,0.0516685]
[1768452572173,20.22574569,144.27,144.23,0.0516685]
[1768452573184,0.04767102,144.26,144.23,0.0516685]
[1768452576184,20.27341671,144.26,144.23,0.0516685]
[1768452577384,22.42539535,144.26,144.19,6.2427]
[1768452577571,22.42539535,144.26,144.18,19.04949356]
[1768452578580,22.42539535,144.26,144.21,0.04385533]
[1768452585486,20.22574569,144.25,144.17,100.92949356]
[1768452585692,20.22574569,144.25,144.18,19.04949356]
[1768452586693,0.04549216,144.23,144.18,19.04949356]
[1768452589494,0.04549216,144.23,144.18,27.4446722]
[1768452589689,2.15197864,144.27,144.18,27.4446722]
[1768452589690,20.22574569,144.27,144.19,19.09511786]
[1768452589896,20.22574569,144.27,144.21,19.04949356]
[1768452590688,0.05129981,144.25,144.21,19.04949356]
[1768452591898,20.22574569,144.27,144.22,0.04568685]
[1768452592988,0.04423762,144.26,144.22,0.04568685]
[1768452600301,19.44176361,144.26,144.22,0.04568685]
[1768452600703,19.39752599,144.29,144.22,21.85153775]
[1768452601700,19.39752599,144.29,144.22,0.04568685]
[1768452601701,21.54950463,144.29,144.22,0.04568685]
[1768452601901,19.39752599,144.26,144.22,0.04568685]
[1768452604001,0.04451931,144.27,144.22,19.69955911]
[1768452605589,19.39752599,144.3,144.23,21.8058509]
[1768452606599,0.05295027,144.28,144.25,0.04451127]
[1768452608103,19.39752599,144.3,144.25,0.04451127]
[1768452609209,0.04463139,144.29,144.25,0.04451127]
[1768452609904,0.04463139,144.29,144.25,6.28481127]
[1768452611597,0.04463139,144.29,144.25,0.04451127]
[1768452612311,19.44215738,144.29,144.25,0.04451127]
[1768452615816,9.59995256,144.34,144.25,19.69838353]
[1768452616018,91.49995256,144.34,144.25,19.65387226]
[1768452616516,6.2366,144.34,144.25,19.65387226]
[1768452616813,9.59995256,144.34,144.25,25.89407226]
[1768452617011,9.59995256,144.34,144.28,0.05283978]
[1768452617904,19.4447666,144.32,144.25,6.2402]
[1768452618110,22.80811916,144.32,144.23,25.89497226]
[1768452618315,22.76087855,144.32,144.23,25.89497226]
[1768452618613,19.39752599,144.31,144.23,19.65387226]
[1768452619118,19.39752599,144.31,144.26,0.04621556]
[1768452620006,0.04803211,144.3,144.26,0.04621556]
[1768452622515,20.01385448,144.3,144.26,0.04621556]
[1768452623916,20.01385448,144.3,144.23,6.241]
[1768452625121,20.01385448,144.3,144.25,0.05240728]
[1768452627719,23.37720704,144.3,144.21,6.2418]
[1768452628016,23.32917493,144.3,144.21,6.2418]
[1768452628422,29.56747493,144.3,144.21,6.2418]
[1768452628621,19.96582237,144.29,144.21,6.2418]
[1768452628816,20.01758471,144.27,144.21,6.2418]
[1768452629424,20.01758471,144.27,144.2,19.39602655]
[1768452629919,20.01758471,144.27,144.22,0.04639405]
[1768452634925,19.96582237,144.26,144.22,0.04639405]
[1768452636719,19.96582237,144.26,144.18,25.63942655]
[1768452637118,19.96582237,144.26,144.19,19.39602655]
[1768452637627,0.05249416,144.24,144.19,19.39602655]
[1768452638738,0.05249416,144.24,144.2,0.0447249]
[1768452646743,20.01831653,144.24,144.2,0.0447249]
[1768452648539,0.05249416,144.24,144.2,0.0447249]
[1768452648738,0.05249416,144.24,144.2,19.44075145]
[1768452659239,25.75195248,144.27,144.2,19.44075145]
[1768452660252,0.05321854,144.25,144.2,19.44075145]
[1768452660447,0.05321854,144.25,144.2,25.68315145]
[1768452661549,19.51235248,144.31,144.22,19.75456528]
[1768452661748,19.51235248,144.31,144.22,23.11791784]
[1768452662649,0.04856411,144.28,144.25,0.04460483]
[1768452663639,0.04856411,144.28,144.25,19.79917011]
[1768452663851,19.51235248,144.31,144.25,19.79917011]
[1768452664845,19.51235248,144.31,144.25,26.03927011]
[1768452665950,0.04885715,144.29,144.25,26.03927011]
[1768452668552,0.04885715,144.29,144.25,19.79917011]
[1768452674054,0.04885715,144.29,144.25,26.03937011]
[1768452678563,0.04885715,144.29,144.25,6.28480483]
[1768452679158,19.56120963,144.29,144.25,6.28480483]
[1768452679357,21.71373788,144.29,144.25,0.04460483]
[1768452683571,19.56120963,144.29,144.25,0.04460483]
[1768452686674,19.56120963,144.29,144.23,6.241]
[1768452686874,19.56120963,144.29,144.21,104.30305843]
[1768452686875,19.56120963,144.29,144.21,110.54495843]
[1768452687473,19.56120963,144.29,144.21,28.66495843]
[1768452687676,19.56120963,144.29,144.22,6.2416]
[1768452687873,19.56120963,144.29,144.24,0.04398274]
[1768452701584,19.56120963,144.29,144.24,20.31451292]
[1768452706990,19.56120963,144.29,144.24,0.04398274]
[1768452708090,19.56120963,144.29,144.24,2.19651099]
[1768452708292,19.56120963,144.29,144.24,22.46704117]
[1768452708989,0.04885715,144.29,144.25,20.27053018]
[1768452709296,19.51355531,144.31,144.26,2.15252825]
[1768452710598,0.04802457,144.3,144.27,0.04667217]
[1768452714697,0.04802457,144.3,144.27,20.94881032]
[1768452714898,19.79155491,144.32,144.27,20.94881032]
[1768452715702,19.79155491,144.32,144.27,0.04667217]